bitfinex/quotes_ETHUSD_20251130
["timestamp","ask_amount","ask_price","bid_price","bid_amount"]
[1764472082772,5.8915632,2994.3,2994.2,0.001]
[1764472084497,4.41892887,2994.3,2994.2,0.4963]
[1764472084697,4.06527283,2994.3,2994.2,0.4963]
[1764472085096,4.52517283,2994.3,2994.2,0.001]
[1764472085397,5.00737283,2994.3,2994.2,0.001]
[1764472085571,5.34330716,2994.3,2994.2,0.001]
[1764472085774,6.23288445,2994.3,2994.2,0.001]
[1764472086194,6.36672615,2994.3,2994.2,0.001]
[1764472086376,6.03079182,2994.3,2994.2,0.001]
[1764472086579,6.36672615,2994.3,2994.2,0.001]
[1764472086982,5.89695012,2994.3,2994.2,0.001]
[1764472087479,6.23288445,2994.3,2994.2,0.001]
[1764472088101,5.89695012,2994.3,2994.2,0.001]
[1764472088487,4.95485012,2994.3,2994.2,0.001]
[1764472089086,1.6151714,2994.3,2994.2,0.4963]
[1764472089399,4.27627283,2994.3,2994.2,0.4963]
[1764472092694,0.93659411,2994.3,2994.2,0.4963]
[1764472093296,4.27627283,2994.3,2994.2,0.4963]
[1764472095679,3.34148623,2994.5,2994.2,0.9478]
[1764472095680,0.002,2994.5,2994.2,0.9478]
[1764472095886,0.002,2994.5,2994.4,0.4953]
[1764472096315,0.002,2994.5,2994.4,0.9468]
[1764472096491,3.34145566,2994.5,2994.4,0.9468]
[1764472096813,8.72077678,2994.5,2994.2,0.001]
[1764472097108,0.0047,2994.3,2994.2,0.001]
[1764472097289,3.34437872,2994.3,2994.2,0.001]
[1764472097495,7.41943042,2994.3,2994.2,0.001]
[1764472097700,8.14502453,2994.3,2994.2,0.001]
[1764472097895,9.36985709,2994.3,2994.2,0.001]
[1764472098694,9.50369835,2994.3,2994.2,0.001]
[1764472103610,9.50369835,2994.3,2994.2,0.001]
[1764472104626,9.60288863,2994.3,2994.2,0.001]
[1764472104818,9.50369835,2994.3,2994.2,0.001]
[1764472107524,9.60288863,2994.3,2994.2,0.001]
[1764472114534,9.50369835,2994.3,2994.2,0.001]
[1764472117049,6.24708098,2994.3,2994.2,0.001]
[1764472117214,9.50369835,2994.3,2994.2,0.001]
[1764472117750,12.76031572,2994.3,2994.2,0.001]
[1764472117917,9.60288863,2994.3,2994.2,0.001]
[1764472118118,9.50369835,2994.3,2994.2,0.001]
[1764472119343,9.60288863,2994.3,2994.2,0.001]
[1764472119513,13.12188863,2994.3,2994.2,0.001]
[1764472119714,9.50369835,2994.3,2994.2,0.001]
[1764472120237,9.47739835,2994.3,2994.2,0.001]
[1764472120438,12.73401572,2994.3,2994.2,0.001]
[1764472120731,16.75771,2994.3,2994.2,0.001]
[1764472123015,9.57658863,2994.3,2994.2,0.001]
[1764472123345,9.68839835,2994.3,2994.2,0.001]
[1764472123545,8.96280424,2994.3,2994.2,0.001]
[1764472123751,9.78758863,2994.3,2994.2,0.001]
[1764472124455,9.68839835,2994.3,2994.2,0.001]
[1764472124620,9.78758863,2994.3,2994.2,0.001]
[1764472127847,5.97088098,2994.3,2994.2,0.4539]
[1764472128076,6.91298098,2994.3,2994.2,0.001]
[1764472128419,7.01217126,2994.3,2994.2,0.001]
[1764472133661,6.91298098,2994.3,2994.2,0.001]
[1764472134354,5.97088098,2994.3,2994.2,0.4622]
[1764472134547,9.22749835,2994.3,2994.2,0.4622]
[1764472135049,9.68239835,2994.3,2994.2,0.001]
[1764472135359,9.78158863,2994.3,2994.2,0.001]
[1764472135602,9.68239835,2994.3,2994.2,0.001]
[1764472135931,29.429448,2994.3,2994.2,0.001]
[1764472136139,30.23317741,2994.3,2994.2,0.001]
[1764472136339,29.84185303,2994.3,2994.2,0.001]
[1764472136526,28.92497103,2994.3,2994.2,0.001]
[1764472137040,28.512566,2994.3,2994.2,0.001]
[1764472137825,12.89485063,2994.3,2994.2,0.001]
[1764472138038,16.151468,2994.3,2994.2,0.001]
[1764472138635,16.005768,2994.3,2994.2,0.001]
[1764472144448,9.01649835,2994.3,2994.2,0.4622]
[1764472144769,9.32668863,2994.3,2994.2,0.4622]
[1764472146280,9.11568863,2994.3,2994.2,0.4622]
[1764472146450,9.22749835,2994.3,2994.2,0.9557]
[1764472146976,5.97088098,2994.3,2994.2,0.9557]
[1764472147281,9.22749835,2994.3,2994.2,0.9557]
[1764472148667,5.97088098,2994.3,2994.2,0.9557]
[1764472149188,5.63494665,2994.3,2994.2,0.9557]
[1764472149383,4.19911409,2994.3,2994.2,0.9557]
[1764472149673,4.27627283,2994.3,2994.2,0.9557]
[1764472149976,3.55067872,2994.3,2994.2,0.9557]
[1764472150350,4.27627283,2994.3,2994.2,0.9557]
[1764472151172,0.93659411,2994.3,2994.2,0.9557]
[1764472151572,4.27627283,2994.3,2994.2,0.9557]
[1764472154892,5.03805687,2994.3,2994.2,0.001]
[1764472155069,5.8288912,2994.3,2994.2,0.001]
[1764472155269,5.3739912,2994.3,2994.2,0.4622]
[1764472156593,5.8288912,2994.3,2994.2,0.001]
[1764472157958,5.3739912,2994.3,2994.2,0.001]
[1764472161303,5.3739912,2994.3,2994.2,0.4638]
[1764472163105,5.3739912,2994.3,2994.2,0.9259]
[1764472163607,4.27627283,2994.3,2994.2,0.9259]
[1764472164368,0.72559411,2994.3,2994.2,0.9259]
[1764472164573,0.72559411,2994.3,2994.2,0.4638]
[1764472164885,4.06527283,2994.3,2994.2,0.9259]
[1764472168999,4.40120716,2994.3,2994.2,0.9259]
[1764472170915,4.40120716,2994.3,2994.2,0.001]
[1764472171104,5.65986956,2994.3,2994.2,0.001]
[1764472171300,5.39736956,2994.3,2994.2,1.1025]
[1764472171514,4.27627283,2994.3,2994.2,1.1025]
[1764472172391,4.61220716,2994.3,2994.2,1.1025]
[1764472173147,4.27627283,2994.3,2994.2,1.1025]
[1764472173309,4.61220716,2994.3,2994.2,1.1025]
[1764472174413,4.27627283,2994.3,2994.2,0.6404]
[1764472174716,5.36377613,2994.3,2994.2,0.4518]
[1764472176315,5.83727613,2994.3,2994.2,0.001]
[1764472176502,5.69971046,2994.3,2994.2,0.9139]
[1764472178326,5.69971046,2994.3,2994.2,0.4518]
[1764472179521,5.69971046,2994.3,2994.2,0.9139]
[1764472182529,5.48871046,2994.3,2994.2,0.9139]
[1764472182725,5.69971046,2994.3,2994.2,0.9139]
[1764472185431,5.69971046,2994.3,2994.2,0.4518]
[1764472186305,5.36377613,2994.3,2994.2,0.4518]
[1764472186630,5.36377613,2994.3,2994.2,0.9139]
[1764472186813,5.36377613,2994.3,2994.2,0.4518]
[1764472187333,5.69971046,2994.3,2994.2,0.4518]
[1764472188339,5.69971046,2994.3,2994.2,0.9139]
[1764472189854,4.61220716,2994.3,2994.2,0.9139]
[1764472190054,4.27627283,2994.3,2994.2,0.9139]
[1764472191844,0.002,2994.5,2994.2,0.9139]
[1764472192065,0.211,2994.4,2994.3,0.4621]
[1764472192239,0.211,2994.4,2994.3,0.9442]
[1764472192621,3.55056719,2994.4,2994.3,0.9442]
[1764472193159,0.211,2994.4,2994.3,0.9442]
[1764472193628,3.55056719,2994.4,2994.3,0.9442]
[1764472194272,3.5525075,2994.5,2994.3,0.9442]
[1764472194464,3.5525075,2994.5,2994.4,0.9486]
[1764472200462,8.40823477,2994.5,2994.2,0.001]
[1764472200624,3.5525075,2994.5,2994.4,0.4821]
[1764472200829,3.55245566,2994.5,2994.4,0.4821]
[1764472201052,3.55245566,2994.5,2994.4,0.9486]
[1764472202670,3.55245566,2994.5,2994.2,0.001]
[1764472202850,7.22784565,2994.5,2994.2,0.4675]
[1764472203052,0.35524557,2994.4,2994.2,0.001]
[1764472204253,6.89191132,2994.5,2994.2,0.001]
[1764472205160,6.89191132,2994.5,2994.2,0.4675]
[1764472205361,3.55245566,2994.5,2994.2,0.4675]
[1764472205565,6.89191132,2994.5,2994.2,0.4675]
[1764472206463,0.4675,2994.4,2994.2,0.4675]
[1764472207468,3.33967872,2994.3,2994.2,0.4675]
[1764472207664,3.80707038,2994.4,2994.2,0.9496]
[1764472207665,0.4675,2994.4,2994.2,0.9496]
[1764472207863,0.213,2994.5,2994.3,0.51549678]
[1764472208162,0.213,2994.5,2994.4,0.9486]
[1764472208669,0.002,2994.5,2994.4,0.9486]
[1764472209638,0.002,2994.5,2994.4,4.28816719]
[1764472209844,0.002,2994.5,2994.4,5.459905]
[1764472210336,0.002,2994.5,2994.4,5.59368761]
[1764472212860,0.002,2994.8,2994.5,1.46373884]
[1764472213064,0.002,2994.8,2994.7,0.4821]
[1764472213240,0.002,2994.8,2994.7,1.15395931]
[1764472213445,0.002,2994.8,2994.7,1.2933598]
[1764472214377,0.002,2994.8,2994.7,1.6988638]
[1764472214565,0.002,2994.8,2994.7,5.03809644]
[1764472215878,0.002,2994.8,2994.7,5.07148876]
[1764472217657,0.002,2994.8,2994.7,5.03809644]
[1764472217859,0.002,2994.8,2994.7,5.94839989]
[1764472218477,0.002,2994.8,2994.7,5.98179221]
[1764472218678,0.002,2994.8,2994.7,5.94839989]
[1764472218863,0.002,2994.8,2994.7,5.98179221]
[1764472219573,0.002,2994.8,2994.7,5.94839989]
[1764472219879,0.002,2994.8,2994.7,5.98179221]
[1764472220480,0.002,2994.8,2994.7,5.94839989]
[1764472222476,0.002,2994.8,2994.7,1.39240345]
[1764472222648,0.002,2994.8,2994.7,0.9691]
[1764472222850,0.002,2994.8,2994.7,1.00249232]
[1764472223204,0.002,2994.8,2994.7,0.9691]
[1764472223982,0.4681,2994.8,2994.2,0.893504]
[1764472224181,0.4681,2994.8,2994.2,0.488]
[1764472224481,3.80722878,2994.8,2994.3,0.487]
[1764472224650,0.4681,2994.8,2994.3,0.487]
[1764472224850,0.4681,2994.8,2994.3,4.26280468]
[1764472225051,0.4681,2994.8,2994.4,0.487]
[1764472227053,0.4681,2994.8,2994.4,3.82652114]
[1764472227382,0.002,2994.8,2994.7,0.4935]
[1764472228585,0.9354,2994.8,2994.2,1.13209811]
[1764472228786,0.9354,2994.8,2994.2,5.54649026]
[1764472228985,0.9354,2994.8,2994.3,0.487]
[1764472229598,0.4681,2994.8,2994.3,0.487]
[1764472230486,0.4681,2994.8,2994.3,0.488]
[1764472230692,0.4681,2994.8,2994.4,3.33956719]
[1764472230892,0.002,2994.8,2994.7,0.4935]
[1764472232582,0.002,2994.8,2994.7,0.9805]
[1764472232983,0.002,2994.8,2994.7,0.4935]
[1764472235569,0.002,2994.8,2994.7,0.9805]
[1764472236475,0.002,2994.8,2994.7,4.35312496]
[1764472236674,0.002,2994.8,2994.7,5.12237149]
[1764472238102,0.9354,2994.8,2994.4,0.405504]
[1764472238284,0.9354,2994.8,2994.4,3.87876571]
[1764472238484,0.9354,2994.8,2994.4,1.0262893]
[1764472238688,0.9354,2994.8,2994.4,0.892504]
[1764472238884,0.4681,2994.8,2994.4,0.892504]
[1764472240390,0.4681,2994.8,2994.4,4.2319886]
[1764472240780,0.002,2994.8,2994.7,0.4935]
[1764472242914,0.002,2994.8,2994.6,3.33924831]
[1764472242915,0.9354,2994.8,2994.4,1.28430939]
[1764472243213,0.4681,2994.8,2994.4,1.77130939]
[1764472243510,0.4681,2994.8,2994.5,0.487]
[1764472244113,0.002,2994.8,2994.5,0.487]
[1764472244309,0.002,2994.8,2994.7,0.4935]
[1764472246819,0.002,2994.8,2994.7,3.83273264]
[1764472247013,0.002,2994.8,2994.7,4.35312496]
[1764472251416,0.002,2994.8,2994.7,4.75862896]
[1764472251616,0.002,2994.8,2994.7,5.6785627]
[1764472251992,0.002,2994.8,2994.7,5.81232921]
[1764472252189,0.002,2994.8,2994.7,5.77893689]
[1764472252893,0.002,2994.8,2994.7,5.98993689]
[1764472258126,0.002,2994.8,2994.7,5.06350315]
[1764472260190,0.002,2994.8,2994.7,4.92973664]
[1764472262322,0.002,2994.8,2994.7,8.18422575]
[1764472262522,3.81112982,2995.7,2994.8,0.405504]
[1764472262729,3.3381222,2995.7,2995.0,0.405504]
[1764472262897,3.3381222,2995.7,2995.0,0.5813748]
[1764472263257,3.3381222,2995.7,2995.1,0.6755]
[1764472263827,3.3381222,2995.7,2995.1,0.195]
[1764472264127,3.3381222,2995.7,2995.2,0.4805]
[1764472264523,3.8148222,2995.7,2995.2,0.4805]
[1764472265927,3.81495335,2995.6,2995.1,0.195]
[1764472266131,3.81495335,2995.6,2995.0,0.405504]
[1764472266302,0.4767,2995.5,2995.1,0.42249917]
[1764472267111,0.4767,2995.5,2995.1,0.90299917]
[1764472267322,3.81484414,2995.7,2995.1,0.42249917]
[1764472267523,3.81484414,2995.7,2995.1,0.90299917]
[1764472267922,3.81684414,2995.7,2995.1,4.24172448]
[1764472270540,3.34014414,2995.7,2995.1,4.24172448]
[1764472270756,0.4767,2995.6,2995.1,4.24172448]
[1764472272642,0.002,2995.7,2995.2,0.4805]
[1764472272810,0.002,2995.7,2995.3,0.03338563]
[1764472273017,0.002,2995.7,2995.6,0.4672]
[1764472273629,0.002,2995.7,2995.6,0.9477]
[1764472274068,0.9364,2995.7,2995.3,0.405504]
[1764472274218,0.9364,2995.7,2995.3,0.58926517]
[1764472274418,0.9364,2995.7,2995.6,0.4672]
[1764472274419,0.002,2995.7,2995.6,0.4672]
[1764472274826,0.002,2995.7,2995.6,0.9477]
[1764472275528,0.002,2995.7,2995.6,4.72481569]
[1764472275827,0.002,2995.7,2995.6,4.93581569]
[1764472276050,0.002,2995.7,2995.6,2.42500169]
[1764472276248,0.002,2995.7,2995.6,1.083704]
[1764472276432,0.002,2995.7,2995.6,4.4219334]
[1764472278460,0.4597,2995.7,2995.6,3.7437334]
[1764472278665,0.002,2995.7,2995.6,3.7437334]
[1764472278957,0.002,2995.7,2995.6,4.2109334]
[1764472279158,0.002,2995.7,2995.6,5.01391067]
[1764472280127,0.002,2995.7,2995.6,1.20848127]
[1764472280334,0.4597,2995.7,2995.6,4.54671067]
[1764472280628,0.4597,2995.7,2995.6,1.20848127]
[1764472281034,0.4597,2995.7,2995.4,3.33841122]
[1764472281535,0.002,2995.7,2995.6,0.4527]
[1764472282098,0.4409,2995.7,2995.5,0.405504]
[1764472283461,0.0285,2995.6,2995.5,3.74379305]
[1764472283754,0.0285,2995.6,2995.3,0.18376117]
[1764472283942,0.4348,2995.4,2995.3,0.405504]
[1764472286405,0.4348,2995.4,2995.3,3.74406774]
[1764472287174,0.4667,2995.6,2995.3,7.56793148]
[1764472287609,0.4667,2995.6,2995.3,4.22936774]
[1764472288885,0.4631,2995.4,2995.3,3.74406774]
[1764472296304,0.4667,2995.6,2995.3,7.08263148]
[1764472297508,0.4667,2995.6,2995.3,3.74406774]
[1764472297710,0.4631,2995.4,2995.3,3.74406774]
[1764472297921,0.4631,2995.4,2995.2,0.212]
[1764472298076,0.0046,2995.3,2995.2,0.212]
[1764472298477,0.4713,2995.3,2995.2,3.55065348]
[1764472298924,0.4713,2995.3,2995.2,0.001]
[1764472301210,0.87336882,2995.3,2995.2,0.001]
[1764472301912,0.40666882,2995.3,2995.2,0.001]
[1764472302090,0.4713,2995.3,2995.2,0.001]
[1764472303813,7.06333703,2995.3,2995.2,0.001]
[1764472305105,7.39927136,2995.3,2995.2,0.001]
[1764472306422,7.06333703,2995.3,2995.2,0.001]
[1764472306602,8.12486547,2995.3,2995.2,0.001]
[1764472306786,9.29229748,2995.3,2995.2,0.001]
[1764472313424,9.39148776,2995.3,2995.2,0.001]
[1764472313918,9.29229748,2995.3,2995.2,0.001]
[1764472314326,9.39148776,2995.3,2995.2,0.001]
[1764472315689,9.52529812,2995.3,2995.2,0.001]
[1764472320313,9.42610784,2995.3,2995.2,0.001]
[1764472320519,9.52529812,2995.3,2995.2,0.001]
[1764472320720,9.42610784,2995.3,2995.2,0.001]
[1764472321229,4.51059575,2995.3,2995.2,0.001]
[1764472321393,4.72159575,2995.3,2995.2,0.001]
[1764472321595,4.06875785,2995.3,2995.2,0.001]
[1764472321831,4.27975785,2995.3,2995.2,0.001]
[1764472326130,4.73225785,2995.3,2995.2,0.001]
[1764472326498,4.27975785,2995.3,2995.2,0.001]
[1764472328539,4.73225785,2995.3,2995.2,0.001]
[1764472328921,5.06819218,2995.3,2995.2,0.001]
[1764472329231,4.73225785,2995.3,2995.2,0.001]
[1764472330807,5.06819218,2995.3,2995.2,0.001]
[1764472332939,4.27975785,2995.3,2995.2,0.001]
[1764472334526,7.53477916,2995.3,2995.2,0.001]
[1764472334918,7.98727916,2995.3,2995.2,0.001]
[1764472336254,8.32321349,2995.3,2995.2,0.001]
[1764472337450,9.48938031,2995.3,2995.2,0.001]
[1764472339028,1.63329411,2995.2,2994.9,0.001]
[1764472339234,1.63329411,2995.2,2994.6,0.001]
[1764472339235,0.33593433,2994.7,2994.6,0.001]
[1764472339428,8.77018239,2994.7,2994.6,0.001]
[1764472339647,10.15286242,2994.7,2994.6,0.001]
[1764472339943,10.28669785,2994.7,2994.6,0.001]
[1764472357172,10.18750757,2994.7,2994.6,0.001]
[1764472357379,10.28669785,2994.7,2994.6,0.001]
[1764472360375,17.05220185,2994.7,2994.6,0.001]
[1764472360579,20.30722316,2994.7,2994.6,0.001]
[1764472361351,23.82522316,2994.7,2994.6,0.001]
[1764472366853,20.57020185,2994.7,2994.6,0.001]
[1764472369480,23.82522316,2994.7,2994.6,0.001]
[1764472370084,23.37272316,2994.7,2994.6,0.001]
[1764472370268,0.72559411,2994.6,2994.5,0.001]
[1764472370468,11.09364339,2994.6,2994.5,0.001]
[1764472370894,11.63300163,2994.6,2994.5,0.001]
[1764472371258,14.97234578,2994.6,2994.5,0.001]
[1764472381615,14.97234578,2994.6,2994.5,0.001]
[1764472382514,14.93454578,2994.6,2994.5,0.001]
[1764472382676,15.41114578,2994.6,2994.5,0.001]
[1764472384414,14.93454578,2994.6,2994.5,0.001]
[1764472384714,14.48144578,2994.6,2994.5,0.4897]
[1764472385184,14.48144578,2994.6,2994.5,0.001]
[1764472386218,14.93454578,2994.6,2994.5,0.001]
[1764472386518,15.41114578,2994.6,2994.5,0.001]
[1764472386930,14.93454578,2994.6,2994.5,0.001]
[1764472387080,14.48144578,2994.6,2994.5,0.4897]
[1764472387294,12.91522306,2994.6,2994.5,0.4897]
[1764472387539,13.16536546,2994.6,2994.5,0.9839]
[1764472387703,13.89095957,2994.6,2994.5,0.9839]
[1764472388111,14.2268939,2994.6,2994.5,0.9839]
[1764472389330,14.32808418,2994.6,2994.5,0.9839]
[1764472389518,16.477698,2994.6,2994.5,0.4897]
[1764472391724,16.925398,2994.6,2994.5,0.001]
[1764472392025,16.477698,2994.6,2994.5,0.4897]
[1764472393824,16.477698,2994.6,2994.5,0.9839]
[1764472394025,16.477698,2994.6,2994.5,0.4897]
[1764472394428,14.32808418,2994.6,2994.5,0.9839]
[1764472394631,14.33024067,2994.6,2994.5,0.9839]
[1764472395935,14.23105039,2994.6,2994.5,0.9839]
[1764472397701,14.23105039,2994.6,2994.5,0.4897]
[1764472398229,14.23105039,2994.6,2994.5,0.9839]
[1764472398526,16.38087986,2994.6,2994.5,0.9839]
[1764472398904,16.48007014,2994.6,2994.5,0.4897]
[1764472399610,16.97527014,2994.6,2994.5,0.4897]
[1764472400230,17.90497014,2994.6,2994.5,0.001]
[1764472401932,17.42837014,2994.6,2994.5,0.001]
[1764472403134,16.97527014,2994.6,2994.5,0.001]
[1764472403735,17.46984553,2994.6,2994.5,0.001]
[1764472403941,17.90497014,2994.6,2994.5,0.001]
[1764472408430,35.26738414,2994.6,2994.5,0.001]
[1764472409401,40.17580314,2994.6,2994.5,0.001]
[1764472409850,40.58130714,2994.6,2994.5,0.001]
[1764472410550,40.57330714,2994.6,2994.5,0.001]
[1764472410715,1.13109811,2994.5,2994.3,0.001]
[1764472410915,11.18268513,2994.4,2994.3,0.001]
[1764472411248,11.66128513,2994.4,2994.3,0.001]
[1764472411543,23.62941613,2994.4,2994.3,0.001]
[1764472411748,18.23608637,2994.4,2994.3,0.001]
[1764472412346,21.57565356,2994.4,2994.3,0.001]
[1764472412538,15.13471956,2994.4,2994.3,0.001]
[1764472412848,0.43512461,2994.2,2994.1,0.001]
[1764472413013,10.99809652,2994.2,2994.0,0.001]
[1764472413212,17.29906172,2994.1,2994.0,0.001]
[1764472413459,17.75256172,2994.1,2994.0,0.001]
[1764472414449,19.82704552,2994.1,2994.0,0.001]
[1764472414624,20.99321234,2994.1,2994.0,0.001]
[1764472416718,27.35321234,2994.1,2994.0,0.001]
[1764472417355,16.56214034,2994.1,2994.0,0.001]
[1764472418159,12.48028734,2994.1,2994.0,0.4941]
[1764472419656,12.48028734,2994.1,2994.0,0.001]
[1764472419856,12.93168734,2994.1,2994.0,0.001]
[1764472421157,12.48028734,2994.1,2994.0,0.4941]
[1764472421523,16.07168134,2994.1,2994.0,0.4941]
[1764472421932,15.35218134,2994.1,2994.0,0.001]
[1764472422436,15.83048134,2994.1,2994.0,0.001]
[1764472423461,15.35218134,2994.1,2994.0,0.001]
[1764472423657,15.35418134,2994.1,2994.0,0.001]
[1764472423958,15.83248134,2994.1,2994.0,0.001]
[1764472425527,15.35418134,2994.1,2994.0,0.001]
[1764472427654,12.48228734,2994.1,2994.0,0.001]
[1764472427954,12.93388734,2994.1,2994.0,0.001]
[1764472428156,17.03872334,2994.1,2994.0,0.001]
[1764472428355,16.56072334,2994.1,2994.0,0.001]
[1764472429077,17.03872334,2994.1,2994.0,0.001]
[1764472434237,16.15910934,2994.1,2994.0,0.001]
[1764472435057,12.93388734,2994.1,2994.0,0.001]
[1764472435263,12.48228734,2994.1,2994.0,0.4954]
[1764472436263,17.19169134,2994.1,2994.0,0.001]
[1764472441667,16.45388734,2994.1,2994.0,0.001]
[1764472441869,12.93588734,2994.1,2994.0,0.001]
[1764472442070,11.96769323,2994.1,2994.0,0.9715]
[1764472442236,10.49133613,2994.1,2994.0,0.9715]
[1764472442441,10.70233613,2994.1,2994.0,0.9715]
[1764472442642,11.09199591,2994.1,2994.0,0.9715]
[1764472444578,10.3664018,2994.1,2994.0,0.9715]
[1764472444774,9.9129018,2994.1,2994.0,0.9715]
[1764472449160,10.24883613,2994.1,2994.0,0.9715]
[1764472450268,9.9129018,2994.1,2994.0,0.4954]
[1764472450576,9.9129018,2994.1,2994.0,0.9715]
[1764472454372,10.24883613,2994.1,2994.0,0.9715]
[1764472466915,11.22033613,2994.1,2994.0,0.9715]
[1764472467791,11.22033613,2994.1,2994.0,0.4954]
[1764472468310,17.91450891,2994.1,2994.0,0.001]
[1764472468618,17.42680891,2994.1,2994.0,0.001]
[1764472468813,16.98500891,2994.1,2994.0,0.001]
[1764472468996,16.98500891,2994.1,2994.0,0.48]
[1764472469598,16.98500891,2994.1,2994.0,0.9671]
[1764472470815,16.98500891,2994.1,2994.0,0.48]
[1764472471913,16.64907458,2994.1,2994.0,0.9671]
[1764472472097,16.98500891,2994.1,2994.0,0.9671]
[1764472472282,13.39174191,2994.1,2994.0,0.9671]
[1764472472486,11.60999591,2994.1,2994.0,0.9671]
[1764472484124,11.60999591,2994.1,2994.0,0.48]
[1764472484491,11.60999591,2994.1,2994.0,0.9671]
[1764472487522,9.9129018,2994.1,2994.0,0.9671]
[1764472488026,3.5529018,2994.1,2994.0,0.9671]
[1764472491893,0.002,2994.1,2994.0,0.9671]
[1764472492406,0.002,2994.1,2994.0,1.39792727]
[1764472495529,0.002,2994.1,2994.0,0.9671]
[1764472497539,1.65729411,2994.1,2994.0,0.001]
[1764472497833,2.99713531,2994.1,2994.0,0.001]
[1764472498034,6.33703711,2994.1,2994.0,0.001]
[1764472498212,7.65155317,2994.1,2994.0,0.001]
[1764472498421,7.31561884,2994.1,2994.0,0.001]
[1764472498916,7.65155317,2994.1,2994.0,0.001]
[1764472500760,7.31561884,2994.1,2994.0,0.001]
[1764472501054,7.75074345,2994.1,2994.0,0.001]
[1764472501209,7.96174345,2994.1,2994.0,0.001]
[1764472502532,11.47974345,2994.1,2994.0,0.001]
[1764472502751,7.96174345,2994.1,2994.0,0.001]
[1764472502915,14.32174345,2994.1,2994.0,0.001]
[1764472503115,14.22255317,2994.1,2994.0,0.001]
[1764472503320,17.47988584,2994.1,2994.0,0.001]
[1764472505450,17.57907612,2994.1,2994.0,0.001]
[1764472516749,17.58014634,2994.1,2994.0,0.001]
[1764472518571,17.98565034,2994.1,2994.0,0.001]
[1764472520046,14.72724745,2994.1,2994.0,0.001]
[1764472520251,17.98565034,2994.1,2994.0,0.001]
[1764472520454,17.64971601,2994.1,2994.0,0.001]
[1764472520661,17.98565034,2994.1,2994.0,0.001]
[1764472522929,28.45880134,2994.1,2994.0,0.001]
[1764472523265,26.32558134,2994.1,2994.0,0.001]
[1764472523449,23.80808134,2994.1,2994.0,0.001]
[1764472524135,22.32918134,2994.1,2994.0,0.001]
[1764472525029,26.04668134,2994.1,2994.0,0.001]
[1764472525651,26.14668134,2994.1,2994.0,0.001]
[1764472526168,22.84668134,2994.1,2994.0,0.001]
[1764472527167,31.36801134,2994.1,2994.0,0.001]
[1764472528030,37.86651134,2994.1,2994.0,0.001]
[1764472528230,37.38208834,2994.1,2994.0,0.001]
[1764472528455,34.18208834,2994.1,2994.0,0.001]
[1764472528652,11.397583,2994.0,2992.5,0.003]
[1764472528856,11.397583,2994.0,2990.9,0.1929]
[1764472528857,0.405504,2992.5,2991.5,0.4775]
[1764472529139,5.31312561,2992.2,2991.5,0.4775]
[1764472529639,6.22852561,2992.2,2991.5,0.4775]
[1764472529865,32.38690461,2992.2,2991.5,0.4775]
[1764472530452,10.54931561,2992.2,2991.5,0.4775]
[1764472530770,9.5705482,2992.2,2991.6,0.4775]
[1764472530972,10.47738953,2992.2,2991.6,0.4775]
[1764472531267,10.03948953,2992.2,2991.8,0.4775]
[1764472531574,9.55098953,2992.2,2992.1,0.4615]
[1764472531782,8.2386442,2992.2,2992.1,0.4615]
[1764472531941,8.2386442,2992.2,2992.1,1.0673]
[1764472532669,8.13945392,2992.2,2992.1,1.0673]
[1764472534141,4.88105103,2992.2,2992.1,1.0673]
[1764472534367,4.5451167,2992.2,2992.1,1.0673]
[1764472535676,4.88105103,2992.2,2992.1,1.0673]
[1764472538042,4.64430698,2992.2,2992.1,1.0673]
[1764472538369,4.98024131,2992.2,2992.1,0.4615]
[1764472539877,4.98024131,2992.2,2992.1,0.939]
[1764472541179,4.88105103,2992.2,2992.1,1.0673]
[1764472542852,4.5451167,2992.2,2992.1,1.0673]
[1764472543052,4.88105103,2992.2,2992.1,1.0673]
[1764472545380,3.67795692,2992.2,2992.1,1.0673]
[1764472545584,3.34202259,2992.2,2992.1,1.0673]
[1764472546483,6.68382242,2992.3,2992.1,1.0673]
[1764472546664,4.06750532,2992.3,2992.2,0.929]
[1764472546861,4.55725664,2992.4,2992.2,0.929]
[1764472547067,3.34173946,2992.5,2992.3,0.929]
[1764472547265,3.34173946,2992.5,2992.3,0.4775]
[1764472547466,3.34173946,2992.5,2992.4,0.929]
[1764472547982,3.55449134,2992.7,2992.4,0.929]
[1764472547983,0.213,2992.7,2992.4,0.929]
[1764472548160,0.213,2992.7,2992.6,0.4515]
[1764472548561,3.55446422,2992.7,2992.6,0.929]
[1764472548765,0.213,2992.7,2992.6,0.929]
[1764472549673,0.002,2992.7,2992.6,0.929]
[1764472550875,0.002,2992.7,2992.6,1.35607232]
[1764472551287,0.002,2992.7,2992.6,4.6976482]
[1764472551590,0.002,2993.0,2992.6,4.6976482]
[1764472551882,0.002,2993.0,2992.9,0.4515]
[1764472552269,0.002,2993.0,2992.9,0.948]
[1764472552975,0.002,2993.0,2992.9,1.3769428]
[1764472556980,0.002,2993.0,2992.9,0.948]
[1764472557693,0.002,2993.0,2992.9,4.28924093]
[1764472559386,0.002,2993.0,2992.9,4.50024093]
[1764472559579,0.002,2993.0,2992.9,5.63133904]
[1764472559779,0.002,2993.0,2992.9,5.66475144]
[1764472559985,0.002,2993.0,2992.9,7.22534849]
[1764472560193,0.002,2993.0,2992.9,7.19193609]
[1764472560401,0.002,2993.3,2993.0,1.13109811]
[1764472560699,0.002,2994.1,2993.3,1.13109811]
[1764472560876,0.002,2994.1,2994.0,0.4524]
[1764472561074,0.002,2994.1,2994.0,0.9489]